bitfinex/quotes_BTCUSD_20251224
["timestamp","ask_amount","ask_price","bid_price","bid_amount"]
[1766540953135,1.33e-06,87562.0,87556.0,0.01142126]
[1766540953940,0.01141878,87575.0,87559.0,0.01827162]
[1766540954171,0.01141969,87568.0,87559.0,0.01827162]
[1766540954383,0.01141943,87570.0,87559.0,0.01827162]
[1766540954735,0.1339793,87571.0,87562.0,0.01142047]
[1766540954962,0.01144,87577.0,87566.0,0.01141995]
[1766540955111,0.01144,87577.0,87569.0,0.01141956]
[1766540955513,0.01144,87577.0,87568.0,0.01141969]
[1766540955713,0.01144,87577.0,87569.0,0.01141956]
[1766540955933,0.01141839,87578.0,87569.0,0.01141956]
[1766540956135,0.01141826,87579.0,87570.0,0.01141943]
[1766540956348,0.01141826,87579.0,87569.0,0.01141956]
[1766540956579,0.01141839,87578.0,87569.0,0.01141956]
[1766540956739,0.01141826,87579.0,87570.0,0.01141943]
[1766540957652,0.45712276,87580.0,87570.0,0.01141943]
[1766540958688,0.45712276,87580.0,87571.0,0.0114193]
[1766540958889,0.21856276,87580.0,87571.0,0.0114193]
[1766540959041,0.09356276,87580.0,87571.0,0.0114193]
[1766540959245,0.45712263,87581.0,87570.0,0.01141943]
[1766540960196,0.01141813,87580.0,87570.0,0.01141943]
[1766540960395,0.00232983,87576.0,87571.0,0.06851524]
[1766540960595,0.01144,87584.0,87574.0,0.01141891]
[1766540960742,0.02285734,87586.0,87574.0,0.01141891]
[1766540961243,0.01141748,87585.0,87574.0,0.01141891]
[1766540961444,0.01141761,87584.0,87575.0,0.01141878]
[1766540961685,0.01144,87586.0,87580.0,0.01141813]
[1766540961868,3.69e-06,87587.0,87581.0,0.011418]
[1766540962068,0.01141656,87592.0,87580.0,0.01144]
[1766540962300,0.01141708,87588.0,87580.0,0.01144]
[1766540962498,0.01141721,87587.0,87580.0,0.01144]
[1766540962719,0.01141682,87590.0,87580.0,0.01144]
[1766540963319,0.01141552,87600.0,87590.0,0.01196682]
[1766540963521,0.01141565,87599.0,87590.0,0.00055]
[1766540963728,0.01141578,87598.0,87590.0,0.00055]
[1766540963923,0.01141578,87598.0,87589.0,0.01144]
[1766540964156,0.01141591,87597.0,87589.0,0.01144]
[1766540964426,0.01141578,87598.0,87589.0,0.01144]
[1766540964591,0.01141591,87597.0,87589.0,0.01144]
[1766540964788,0.06849652,87596.0,87589.0,0.010891]
[1766540965220,0.01141604,87596.0,87589.0,0.010891]
[1766540965444,0.01141617,87595.0,87589.0,0.010891]
[1766540965633,0.01141578,87598.0,87589.0,0.010891]
[1766540966196,0.01141604,87596.0,87589.0,0.010891]
[1766540966827,0.01141617,87595.0,87589.0,0.010891]
[1766540967051,0.01141604,87596.0,87589.0,0.010891]
[1766540967975,0.01141591,87597.0,87589.0,0.010891]
[1766540968579,0.01141617,87595.0,87589.0,0.010891]
[1766540968776,0.0114163,87594.0,87589.0,0.010891]
[1766540969260,0.06849791,87594.0,87589.0,0.010891]
[1766540969455,0.0114163,87594.0,87589.0,0.010891]
[1766540969681,0.01141643,87593.0,87589.0,0.010891]
[1766540969859,0.01141643,87593.0,87584.0,0.01144]
[1766540970114,0.01141643,87593.0,87585.0,0.01144]
[1766540970902,0.01141643,87593.0,87586.0,0.01144]
[1766540971680,0.0684956,87597.0,87586.0,0.01144]
[1766540972080,0.01141643,87593.0,87586.0,0.01144]
[1766540972507,0.01141656,87592.0,87586.0,0.01144]
[1766540972741,0.01141656,87592.0,87587.0,0.01144]
[1766540972870,0.01141643,87593.0,87587.0,0.01144]
[1766540973079,0.01141656,87592.0,87587.0,0.01144]
[1766540973293,0.01141643,87593.0,87587.0,0.01144]
[1766540974376,0.01086756,87592.0,87587.0,0.01144]
[1766540974578,0.01141643,87593.0,87588.0,0.01144]
[1766540975265,0.01141656,87592.0,87588.0,0.01144]
[1766540975491,0.06774637,87595.0,87588.0,0.01144]
[1766540975691,0.01141643,87593.0,87588.0,0.01144]
[1766540976250,0.01141656,87592.0,87588.0,0.01144]
[1766540976454,0.01141643,87593.0,87588.0,0.01144]
[1766540978942,0.0114163,87594.0,87588.0,0.01144]
[1766540979348,0.01066546,87595.0,87588.0,0.01144]
[1766540980453,0.01141604,87596.0,87588.0,0.01144]
[1766540981312,0.01141578,87598.0,87588.0,0.01144]
[1766540981518,0.00035793,87600.0,87590.0,0.01141682]
[1766540981858,0.01141565,87599.0,87590.0,0.01141682]
[1766540982016,0.01141565,87599.0,87589.0,0.01141695]
[1766540982204,0.05707892,87598.0,87588.0,0.02971162]
[1766540982405,0.01141591,87597.0,87588.0,0.02971162]
[1766540983201,0.01141604,87596.0,87588.0,0.02971162]
[1766540983402,0.01141617,87595.0,87588.0,0.02971162]
[1766540983655,0.0114163,87594.0,87588.0,0.02971162]
[1766540983960,0.01141643,87593.0,87588.0,0.01144]
[1766540984513,0.01141656,87592.0,87588.0,0.01144]
[1766540984714,0.01141643,87593.0,87588.0,0.01144]
[1766540985377,0.01141656,87592.0,87588.0,0.01144]
[1766540986875,0.01141656,87592.0,87588.0,0.010891]
[1766540987628,0.01141656,87592.0,87584.0,0.01144]
[1766540987629,0.01141721,87587.0,87584.0,0.01144]
[1766540987739,0.01141721,87587.0,87555.0,0.08750213]
[1766540987740,0.01141787,87582.0,87571.0,0.0114193]
[1766540987940,0.01141761,87584.0,87568.0,0.01827162]
[1766540987941,0.01141891,87574.0,87568.0,0.01827162]
[1766540988159,0.01141878,87575.0,87574.0,0.000549]
[1766540988365,0.05709821,87569.0,87565.0,0.01144]
[1766540988618,0.01141982,87567.0,87565.0,0.01144]
[1766540989035,0.05710043,87565.0,87564.0,0.0001]
[1766540989171,0.05764943,87565.0,87564.0,0.0001]
[1766540989372,0.06852241,87563.0,87557.0,0.01144]
[1766540989593,0.01142074,87560.0,87557.0,0.0115474]
[1766540990325,0.05708656,87559.0,87557.0,0.0001074]
[1766540990482,0.11419092,87559.0,87557.0,0.0001074]
[1766540990688,0.11419092,87559.0,87557.0,4e-07]
[1766540991830,0.05708656,87559.0,87557.0,4e-07]
[1766540994277,0.06850743,87559.0,87553.0,0.01119413]
[1766540994466,0.06850743,87559.0,87553.0,0.01125546]
[1766540994669,0.05697956,87559.0,87556.0,0.01142126]
[1766540994865,0.02285969,87568.0,87557.0,0.01142113]
[1766540995064,0.01141995,87566.0,87557.0,0.01142113]
[1766540995263,0.01141969,87568.0,87557.0,0.01142113]
[1766540995264,0.06853652,87571.0,87557.0,0.01142113]
[1766540995736,0.06853652,87571.0,87553.0,0.07978509]
[1766540995737,0.01141826,87579.0,87571.0,0.00055]
[1766540995938,0.01141839,87578.0,87571.0,0.00055]
[1766540996198,0.01141852,87577.0,87566.0,0.02285995]
[1766540996398,0.01141878,87575.0,87566.0,0.02285995]
[1766540996543,0.01141865,87576.0,87566.0,0.02285995]
[1766540996741,0.01141878,87575.0,87566.0,0.01144]
[1766540997061,0.01141917,87572.0,87566.0,0.01144]
[1766540997259,0.01141904,87573.0,87566.0,0.01144]
[1766540997772,0.01141891,87574.0,87566.0,0.01144]
[1766540998485,0.01141904,87573.0,87566.0,0.01144]
[1766540998675,0.01141891,87574.0,87566.0,0.01144]
[1766540998874,0.01141904,87573.0,87566.0,0.01144]
[1766540999197,0.01141878,87575.0,87566.0,0.01144]
[1766540999732,0.01141865,87576.0,87566.0,0.02285995]
[1766540999939,0.01141852,87577.0,87567.0,0.01141982]
[1766541000086,0.01141865,87576.0,87566.0,0.02285995]
[1766541000297,0.011418,87581.0,87576.0,0.00055]
[1766541000923,0.02285721,87587.0,87576.0,0.01141865]
[1766541001101,0.01144,87588.0,87576.0,0.01141865]
[1766541001581,0.01141721,87587.0,87577.0,0.01141852]
[1766541001809,0.01141734,87586.0,87576.0,0.01141865]
[1766541002415,0.01141734,87586.0,87573.0,0.02285904]
[1766541002632,0.01141787,87582.0,87573.0,0.02285904]
[1766541002809,0.01141774,87583.0,87573.0,0.01144]
[1766541003025,0.01141748,87585.0,87575.0,0.01141878]
[1766541003468,0.01141734,87586.0,87576.0,0.01141865]
[1766541003966,0.01141748,87585.0,87574.0,0.01141891]
[1766541004526,0.01141761,87584.0,87574.0,0.01141891]
[1766541004725,0.01141761,87584.0,87575.0,0.01141878]
[1766541004927,0.01141813,87580.0,87573.0,0.01144]
[1766541005125,0.01141787,87582.0,87573.0,0.01144]
[1766541005421,0.06850644,87583.0,87573.0,0.01144]
[1766541005644,0.01141774,87583.0,87573.0,0.02285904]
[1766541005826,0.01141774,87583.0,87574.0,0.01141891]
[1766541006450,0.01141761,87584.0,87574.0,0.01141891]
[1766541006873,0.01141761,87584.0,87573.0,0.02285904]
[1766541007409,0.01141748,87585.0,87575.0,0.01141878]
[1766541007572,0.01141761,87584.0,87573.0,0.02285904]
[1766541007768,0.01141774,87583.0,87573.0,0.02285904]
[1766541008504,0.01141761,87584.0,87574.0,0.01141891]
[1766541008887,0.01141761,87584.0,87573.0,0.02285904]
[1766541008888,0.01141774,87583.0,87573.0,0.02285904]
[1766541009089,0.01144,87588.0,87573.0,0.01144]
[1766541009090,0.01141826,87579.0,87573.0,0.01144]
[1766541009270,0.01141813,87580.0,87573.0,0.01144]
[1766541009677,0.05708892,87583.0,87573.0,0.01144]
[1766541009882,0.011418,87581.0,87573.0,0.01144]
[1766541010556,0.01141787,87582.0,87573.0,0.01144]
[1766541010760,0.01141761,87584.0,87573.0,0.02285904]
[1766541010960,0.02285708,87588.0,87578.0,0.01141839]
[1766541011263,0.01141721,87587.0,87577.0,0.01141852]
[1766541011667,0.01141656,87592.0,87579.0,0.01141826]
[1766541011946,0.01141656,87592.0,87582.0,0.01141787]
[1766541011947,0.01141669,87591.0,87582.0,0.01141787]
[1766541012067,0.068498,87594.0,87582.0,0.01141787]
[1766541012270,0.01144,87595.0,87583.0,0.01141774]
[1766541012587,0.0114163,87594.0,87582.0,0.01141787]
[1766541012784,0.01141643,87593.0,87583.0,0.01141774]
[1766541012986,0.0114163,87594.0,87584.0,0.01141761]
[1766541013190,0.01152377,87593.0,87582.0,0.01141787]
[1766541013594,0.01152377,87593.0,87581.0,0.011418]
[1766541013795,0.01141656,87592.0,87582.0,0.01141787]
[1766541015968,0.01152377,87593.0,87583.0,0.01141774]
[1766541016167,0.01141656,87592.0,87582.0,0.01141787]
[1766541016367,0.01141708,87588.0,87580.0,0.01144]
[1766541016526,0.01141774,87583.0,87581.0,0.010891]
[1766541016732,0.01141734,87586.0,87581.0,0.010891]
[1766541016733,0.01141761,87584.0,87581.0,0.010891]
[1766541017251,0.34168669,87590.0,87572.0,0.00978637]
[1766541017252,0.01141865,87576.0,87572.0,0.00978637]
[1766541017419,0.01141826,87579.0,87573.0,0.01144]
[1766541017620,0.01141852,87577.0,87573.0,0.01144]
[1766541017858,0.01141852,87577.0,87567.0,0.01141982]
[1766541018044,0.01141839,87578.0,87568.0,0.02285969]
[1766541018414,0.01141813,87580.0,87569.0,0.04569209]
[1766541019341,0.01141787,87582.0,87570.0,0.01141943]
[1766541019546,0.01141787,87582.0,87572.0,0.01141917]
[1766541020353,0.01141787,87582.0,87573.0,0.01144]
[1766541020559,0.011418,87581.0,87573.0,0.01144]
[1766541021098,0.01141787,87582.0,87573.0,0.01144]
[1766541021279,0.011418,87581.0,87573.0,0.01144]
[1766541021478,0.01141787,87582.0,87573.0,0.01144]
[1766541021794,0.011418,87581.0,87573.0,0.01144]
[1766541022025,0.01141787,87582.0,87573.0,0.01144]
[1766541022396,0.011418,87581.0,87573.0,0.01144]
[1766541025433,0.01141813,87580.0,87573.0,0.01144]
[1766541025640,0.01141826,87579.0,87573.0,0.01144]
[1766541026059,0.01141813,87580.0,87573.0,0.01144]
[1766541026260,0.011418,87581.0,87573.0,0.01144]
[1766541027456,0.01141774,87583.0,87573.0,0.02285904]
[1766541028043,0.011418,87581.0,87573.0,0.01144]
[1766541028245,0.01141787,87582.0,87573.0,0.01144]
[1766541028648,0.01141774,87583.0,87573.0,0.02285904]
[1766541029036,0.01141761,87584.0,87574.0,0.01141891]
[1766541029229,0.12476748,87585.0,87575.0,0.01141878]
[1766541029419,0.01141761,87584.0,87573.0,0.02285904]
[1766541029617,0.01141787,87582.0,87573.0,0.02285904]
[1766541030225,0.01141787,87582.0,87573.0,0.01144]
[1766541030431,0.01141774,87583.0,87573.0,0.02285904]
[1766541030856,0.011418,87581.0,87573.0,0.01144]
[1766541031225,0.01141787,87582.0,87573.0,0.01144]
[1766541032036,0.01141761,87584.0,87573.0,0.02285904]
[1766541032243,0.01141774,87583.0,87573.0,0.02285904]
[1766541032450,0.01141787,87582.0,87573.0,0.02285904]
[1766541032931,0.01141774,87583.0,87573.0,0.02285904]
[1766541033659,0.01141787,87582.0,87573.0,0.01144]
[1766541033858,0.01141761,87584.0,87574.0,0.01141891]
[1766541034660,0.01141761,87584.0,87575.0,0.01141878]
[1766541034839,0.01141761,87584.0,87574.0,0.01141891]
[1766541035446,0.01141761,87584.0,87575.0,0.01141878]
[1766541035652,0.12476748,87585.0,87575.0,0.01141878]
[1766541036407,0.07994217,87589.0,87577.0,0.01141852]
[1766541036709,0.01141721,87587.0,87578.0,0.01144]
[1766541036952,0.01141708,87588.0,87578.0,0.02285839]
[1766541037150,0.02285695,87589.0,87579.0,0.01141826]
[1766541037372,0.01141708,87588.0,87579.0,0.01141826]
[1766541037776,0.01144,87589.0,87579.0,0.01141826]
[1766541038569,0.01141708,87588.0,87578.0,0.02285839]
[1766541038751,0.01141721,87587.0,87578.0,0.02285839]
[1766541038949,0.01144,87589.0,87580.0,0.01141813]
[1766541039173,0.01325034,87591.0,87585.0,0.01141748]
[1766541039372,0.0570798,87597.0,87585.0,0.02285748]
[1766541039656,0.01141617,87595.0,87585.0,0.02285748]
[1766541040216,0.01141539,87601.0,87589.0,0.05708458]
[1766541040375,0.01141539,87601.0,87590.0,0.02285682]
[1766541040790,0.02285526,87602.0,87592.0,0.01141656]
[1766541041419,0.02285526,87602.0,87591.0,0.01141669]
[1766541042103,0.01141552,87600.0,87590.0,0.01144]
[1766541042542,0.01141539,87601.0,87591.0,0.01141669]
[1766541042924,0.01141552,87600.0,87590.0,0.02285682]
[1766541043102,0.01141552,87600.0,87590.0,0.01144]
[1766541043502,0.02285526,87602.0,87591.0,0.01141669]
[1766541043911,0.01141539,87601.0,87592.0,0.01141656]
[1766541044108,0.02285526,87602.0,87591.0,0.01141669]
[1766541044360,0.01141539,87601.0,87591.0,0.01141669]
[1766541044648,0.01141539,87601.0,87592.0,0.01141656]
[1766541044836,0.01141539,87601.0,87591.0,0.01141669]
[1766541045594,0.02285526,87602.0,87592.0,0.01141656]
[1766541046542,0.01144,87602.0,87593.0,0.01141643]
[1766541046751,0.02285526,87602.0,87592.0,0.01141656]
[1766541046967,0.01141539,87601.0,87592.0,0.01126367]
[1766541047168,0.02285526,87602.0,87592.0,0.01049931]
[1766541047343,0.02285526,87602.0,87592.0,0.01141656]
[1766541047522,0.01141539,87601.0,87591.0,0.01141669]
[1766541047729,0.02285526,87602.0,87592.0,0.01141656]
[1766541048541,0.01141539,87601.0,87592.0,0.01141656]
[1766541048746,0.01184,87610.0,87597.0,0.01141591]
[1766541049011,0.01184,87610.0,87601.0,0.01196439]
[1766541049292,0.06848307,87613.0,87601.0,0.01196439]
[1766541049293,0.01141396,87612.0,87602.0,0.01144]
[1766541049449,0.22836857,87617.0,87607.0,0.01141461]
[1766541049450,0.01181344,87616.0,87607.0,0.01141461]
[1766541049638,0.0001,87617.0,87608.0,0.01144]
[1766541049838,0.01151331,87617.0,87608.0,0.01144]
[1766541050099,0.0114137,87614.0,87608.0,0.01144]
[1766541050304,0.13361174,87629.0,87615.0,0.01141357]
[1766541050506,0.011412,87627.0,87617.0,0.01141331]
[1766541050702,0.00075793,87628.0,87617.0,0.01141331]
[1766541050925,0.01141213,87626.0,87616.0,0.02285344]
[1766541051154,0.00075793,87628.0,87617.0,0.01141331]
[1766541051302,0.0121698,87628.0,87618.0,0.01141317]
[1766541051684,0.011412,87627.0,87617.0,0.01141331]
[1766541051892,0.00075793,87628.0,87618.0,0.01141317]
[1766541052145,0.05705603,87634.0,87616.0,0.02285344]
[1766541052146,0.01144,87645.0,87634.0,0.01141109]
[1766541052349,0.00050735,87640.0,87631.0,0.01144]
[1766541052770,0.01191766,87640.0,87631.0,0.02285148]
[1766541052969,0.01141044,87639.0,87631.0,0.01144]
[1766541053169,0.01141057,87638.0,87631.0,0.01144]
[1766541054374,0.01141057,87638.0,87630.0,0.01827162]
[1766541054375,0.000341,87631.0,87630.0,0.02896816]
[1766541054611,0.133612,87627.0,87624.0,0.01144]
[1766541054821,0.01141226,87625.0,87621.0,0.01144]
[1766541054940,0.01141226,87625.0,87620.0,0.04569441]
[1766541055146,0.01141213,87626.0,87620.0,0.04569441]
[1766541055822,0.1222,87627.0,87620.0,0.04569441]
[1766541056588,0.01141187,87628.0,87620.0,0.04551616]
[1766541056797,0.01141148,87631.0,87628.0,0.000208]
[1766541057173,0.01141148,87631.0,87622.0,0.01141265]
[1766541057413,0.01141148,87631.0,87620.0,0.05692907]
[1766541057616,0.01141174,87629.0,87620.0,0.04551616]
[1766541057820,0.01141161,87630.0,87620.0,0.04551616]
[1766541058020,0.01141187,87628.0,87620.0,0.04551616]
[1766541058163,0.01141174,87629.0,87620.0,0.04551616]
[1766541058366,0.01141187,87628.0,87620.0,0.04551616]
[1766541058588,0.01141174,87629.0,87620.0,0.04551616]
[1766541058786,0.01141174,87629.0,87620.0,0.05692907]
[1766541059072,0.01141174,87629.0,87620.0,0.04551616]
[1766541059273,0.01141161,87630.0,87620.0,0.05692907]
[1766541059599,0.05705549,87634.0,87621.0,0.01141278]
[1766541059799,0.01141148,87631.0,87621.0,0.01141278]
[1766541060207,0.01141148,87631.0,87620.0,0.05692907]
[1766541060403,0.01141148,87631.0,87621.0,0.01141278]
[1766541060607,0.01144,87633.0,87631.0,0.000208]
[1766541060805,0.01141135,87632.0,87622.0,0.01141265]
[1766541061007,0.02285122,87633.0,87623.0,0.01141252]
[1766541061210,0.02285122,87633.0,87624.0,0.01141239]
[1766541061387,0.02285122,87633.0,87623.0,0.01141252]
[1766541061593,0.02285122,87633.0,87624.0,0.01141239]
[1766541061793,0.02285122,87633.0,87623.0,0.01141252]
[1766541062006,0.01144,87633.0,87625.0,0.01141226]
[1766541062342,0.01144,87633.0,87624.0,0.01141239]
[1766541062533,0.011412,87627.0,87623.0,0.01141252]
[1766541062763,0.000341,87624.0,87623.0,0.01141252]
[1766541062965,0.133082,87627.0,87611.0,0.01141409]
[1766541063142,0.01141239,87624.0,87616.0,0.01144]
[1766541063299,0.01151239,87624.0,87616.0,0.01144]
[1766541063524,0.0001,87624.0,87616.0,0.01144]
[1766541063939,0.01141265,87622.0,87616.0,0.01144]
[1766541064280,0.0001,87624.0,87616.0,0.01144]
[1766541065057,0.0001,87624.0,87616.0,0.01082877]
[1766541065258,0.0001,87624.0,87616.0,0.02224221]
[1766541065464,0.02285187,87628.0,87618.0,0.01141317]
[1766541065847,0.01144,87628.0,87618.0,0.06847842]
[1766541066066,0.01144,87628.0,87619.0,0.01141304]
[1766541066274,0.01144,87632.0,87621.0,0.01141278]
[1766541066446,0.02285109,87634.0,87620.0,0.01141291]
[1766541066644,0.05705631,87633.0,87623.0,0.01141252]
[1766541066853,0.01141135,87632.0,87622.0,0.01141265]
[1766541067091,0.02285109,87634.0,87623.0,0.02285252]
[1766541067299,0.01144,87634.0,87625.0,0.01141226]
[1766541067501,0.02285109,87634.0,87624.0,0.01141239]
[1766541067790,0.01141161,87630.0,87623.0,0.01144]
[1766541068000,0.05705678,87632.0,87623.0,0.01144]
[1766541068198,0.01141148,87631.0,87623.0,0.01144]
[1766541068734,0.01141161,87630.0,87623.0,0.01144]
[1766541068935,0.01141148,87631.0,87623.0,0.01144]
[1766541070518,0.01141161,87630.0,87623.0,0.01144]
[1766541070919,0.011412,87627.0,87623.0,0.01144]
[1766541071120,0.06847347,87626.0,87623.0,0.01144]
[1766541071323,0.22823409,87630.0,87606.0,0.02968636]
[1766541071324,0.01141278,87621.0,87606.0,0.02968636]
[1766541071571,0.01141344,87616.0,87603.0,0.01141513]
[1766541071716,0.000441,87606.0,87605.0,0.01144]
[1766541072107,0.01141422,87610.0,87605.0,0.01144]
[1766541072276,0.01141409,87611.0,87605.0,0.01144]
[1766541072507,0.01141383,87613.0,87605.0,0.01144]
[1766541072658,0.12167,87612.0,87605.0,0.02285487]
[1766541072840,0.12167,87612.0,87605.0,0.0232128]
[1766541074374,0.12167,87612.0,87606.0,0.01141474]
[1766541074619,0.12167,87612.0,87605.0,0.01179793]
[1766541075170,0.05885911,87612.0,87605.0,0.01179793]
[1766541075776,0.04678872,87612.0,87605.0,0.0232128]
[1766541076184,0.01141409,87611.0,87605.0,0.01179793]
[1766541077040,0.05820268,87612.0,87605.0,0.01179793]
[1766541077237,0.01141409,87611.0,87605.0,0.01179793]
[1766541077440,0.04678872,87612.0,87605.0,0.01179793]
[1766541077640,0.05820268,87612.0,87605.0,0.01179793]
[1766541077997,0.01141409,87611.0,87605.0,0.01179793]
[1766541078198,0.01141422,87610.0,87605.0,0.01179793]
[1766541078499,0.13308448,87608.0,87605.0,0.01135693]
[1766541079010,0.05707306,87607.0,87605.0,0.01135693]
[1766541079649,0.13308448,87608.0,87605.0,0.01135693]
[1766541079969,0.12167,87608.0,87605.0,0.01135693]
[1766541080170,0.01141422,87610.0,87608.0,0.000549]
[1766541080364,0.01141422,87610.0,87605.0,0.01135693]
[1766541080948,0.01141448,87608.0,87605.0,0.01135693]
[1766541081158,0.12167,87607.0,87605.0,0.01135693]
[1766541081354,0.0684904,87604.0,87600.0,0.01144]
[1766541081523,0.00035793,87604.0,87600.0,0.01144]
[1766541081731,0.01141513,87603.0,87600.0,0.01144]
[1766541082606,0.06884856,87604.0,87600.0,0.01144]
[1766541082607,0.12202793,87604.0,87600.0,0.01144]
[1766541083851,0.13289393,87604.0,87600.0,0.01144]
[1766541084080,0.01141513,87603.0,87600.0,0.01144]
[1766541084606,0.01141513,87603.0,87594.0,0.0001]
[1766541084813,0.01141513,87603.0,87595.0,0.01144]
[1766541085819,0.00018663,87598.0,87595.0,0.01144]
[1766541086356,0.00018663,87598.0,87596.0,0.0115163]
[1766541088336,0.00018663,87598.0,87596.0,0.0109673]
[1766541089007,0.00018663,87598.0,87595.0,0.01144]
[1766541089205,0.00018663,87598.0,87595.0,0.02288]
[1766541089425,6.3e-07,87598.0,87595.0,0.02288]
[1766541089560,6.3e-07,87598.0,87595.0,0.01144]
[1766541089780,6.3e-07,87598.0,87596.0,0.01141539]
[1766541091613,0.01141539,87601.0,87596.0,0.01141539]
[1766541092577,0.01141539,87623.0,87601.0,0.000913]
[1766541092578,0.01141474,87606.0,87601.0,0.000913]
[1766541092746,0.13289393,87604.0,87596.0,0.01141539]
[1766541092932,0.12147893,87604.0,87596.0,0.01141539]
[1766541093129,0.12147893,87604.0,87596.0,0.02283143]
[1766541093914,0.12147893,87604.0,87596.0,0.01141539]
[1766541094815,0.01144,87606.0,87596.0,0.02283143]
[1766541095006,0.01151755,87606.0,87604.0,0.000363]
[1766541095365,0.01151755,87606.0,87596.0,0.02283143]
[1766541095570,0.01151755,87606.0,87597.0,0.01141591]
[1766541096638,0.01115455,87606.0,87597.0,0.01141591]
[1766541096968,0.01115455,87606.0,87598.0,0.01141578]
[1766541098220,0.01115455,87606.0,87599.0,0.02283143]
[1766541098663,0.02285448,87608.0,87599.0,0.03424708]
[1766541098880,0.11629,87610.0,87600.0,0.01141552]
[1766541099106,0.01141239,87624.0,87608.0,0.00055]
[1766541099313,7.755e-05,87624.0,87614.0,0.0114137]
[1766541099515,7.755e-05,87624.0,87617.0,0.01141331]
[1766541099739,7.755e-05,87624.0,87618.0,0.01141317]
[1766541099906,7.755e-05,87624.0,87621.0,0.06847648]
[1766541100114,5.5e-07,87624.0,87621.0,0.06847648]
[1766541100315,0.0114107,87637.0,87620.0,0.01141291]
[1766541100316,0.11629,87638.0,87630.0,0.01141161]
[1766541100479,0.01144,87643.0,87638.0,0.000473]
[1766541100808,0.02284992,87643.0,87633.0,0.01141122]
[1766541101044,0.01141005,87642.0,87636.0,0.01141135]
[1766541101221,0.01144,87643.0,87636.0,0.01141135]
[1766541103246,0.01144,87643.0,87636.0,0.02282218]
[1766541103595,0.01144,87643.0,87636.0,0.01141135]
[1766541103795,0.02284992,87643.0,87636.0,0.01048035]
[1766541104555,0.01140966,87645.0,87636.0,0.01048035]
[1766541105378,0.01140953,87646.0,87636.0,0.02189118]
[1766541105833,0.1276994,87647.0,87637.0,0.0114107]
[1766541106179,0.0004,87648.0,87644.0,0.01140979]
[1766541106383,0.01140745,87662.0,87650.0,0.01140901]
[1766541106384,0.01144,87659.0,87650.0,0.01140901]
[1766541106590,0.00050612,87653.0,87650.0,0.01140901]
[1766541107006,0.00050612,87653.0,87651.0,0.03424561]
[1766541107185,1.2e-07,87653.0,87651.0,0.03424561]
[1766541107620,0.01140927,87648.0,87643.0,0.00975791]
[1766541107823,0.0114094,87647.0,87643.0,0.00925191]
[1766541108023,0.00499182,87646.0,87643.0,0.00925191]
[1766541108223,0.0114094,87647.0,87644.0,0.03424561]
[1766541108462,0.0114094,87647.0,87643.0,0.00925191]
[1766541108872,0.01140927,87648.0,87643.0,0.00925191]
[1766541109704,0.0114094,87647.0,87643.0,0.00925191]
[1766541110039,0.01140927,87648.0,87643.0,0.00925191]
[1766541110240,0.01140914,87649.0,87643.0,0.00925191]
[1766541110474,0.12769901,87650.0,87643.0,0.00925191]
[1766541110967,0.04565474,87649.0,87643.0,0.00925191]
[1766541112166,0.0342456,87649.0,87643.0,0.00925191]
[1766541113015,0.05704831,87645.0,87642.0,0.02309241]
[1766541113216,0.01140953,87646.0,87640.0,0.01144]
[1766541113217,0.09345269,87644.0,87640.0,0.01144]
[1766541113427,0.0820429,87644.0,87640.0,0.01144]
[1766541115252,0.0342456,87643.0,87636.0,0.02285083]
[1766541116710,0.0342456,87643.0,87637.0,0.0114107]
[1766541117282,0.0342456,87643.0,87636.0,0.02285083]
[1766541117495,0.1505356,87643.0,87637.0,0.0114107]
[1766541118070,0.01879978,87643.0,87637.0,0.0114107]
[1766541118474,0.01879978,87643.0,87638.0,0.01141057]
[1766541118679,0.01879978,87643.0,87639.0,0.01141044]
[1766541118875,0.000549,87639.0,87636.0,0.01144]
[1766541119074,0.14144978,87643.0,87636.0,0.01144]
[1766541119403,0.13406044,87639.0,87624.0,0.05706199]
[1766541119731,0.12265,87635.0,87625.0,0.01144]
[1766541120036,0.12265,87635.0,87627.0,0.011412]
[1766541120258,0.1221,87635.0,87627.0,0.011412]
[1766541120453,0.01141031,87640.0,87630.0,0.01141161]
[1766541120611,0.01144,87640.0,87634.0,0.01141109]
[1766541120811,0.01144,87640.0,87636.0,0.01141083]
[1766541121009,0.01144,87640.0,87633.0,0.01141122]
[1766541121214,0.01144,87640.0,87635.0,0.01141096]
[1766541121415,0.14144978,87643.0,87635.0,0.01141096]
[1766541121416,0.01879978,87643.0,87635.0,0.01141096]
[1766541121626,0.01879978,87643.0,87636.0,0.01141083]
[1766541122243,0.01879978,87643.0,87635.0,0.01141096]
[1766541122434,0.01879978,87643.0,87636.0,0.01141083]
[1766541122665,0.01879978,87643.0,87635.0,0.01141096]
[1766541122869,0.01879978,87643.0,87636.0,0.01141083]
[1766541123237,0.01879978,87643.0,87635.0,0.01141096]
[1766541123423,0.01879978,87643.0,87633.0,0.01141122]
[1766541123814,0.01879978,87643.0,87634.0,0.01141109]
[1766541124417,0.01879978,87643.0,87635.0,0.01141096]
[1766541125767,0.01879978,87643.0,87634.0,0.01141109]
[1766541126168,0.01879978,87643.0,87635.0,0.01141096]
[1766541130163,0.13405979,87644.0,87634.0,0.01141109]
[1766541130359,0.12265,87644.0,87634.0,0.01141109]
[1766541130563,0.12265,87644.0,87635.0,0.01141096]
[1766541131017,0.12265,87644.0,87632.0,0.06849661]
[1766541131018,0.01141044,87639.0,87632.0,0.01144]
[1766541131189,0.01141031,87640.0,87621.0,0.01141278]
[1766541131190,0.01141148,87631.0,87621.0,0.01141278]
[1766541131344,0.12265,87630.0,87622.0,0.01154]
[1766541131548,0.01141135,87632.0,87605.0,0.04564]
[1766541131549,0.12265,87616.0,87605.0,0.04564]
[1766541131775,0.12265,87616.0,87594.0,0.01837162]
[1766541131776,0.12265,87615.0,87604.0,0.011415]
[1766541131974,0.12265,87615.0,87607.0,0.01141461]
[1766541132204,0.12265,87615.0,87608.0,0.01141448]
[1766541132624,0.12265,87615.0,87610.0,0.01141422]
[1766541132829,0.12265,87615.0,87611.0,0.01141409]
[1766541133152,0.12265,87622.0,87615.0,0.01141357]
[1766541133352,0.0001,87625.0,87617.0,0.01141331]
[1766541133559,0.0001,87625.0,87618.0,0.01141317]
[1766541134111,0.01879977,87624.0,87618.0,0.01141317]
[1766541134934,0.01879977,87624.0,87621.0,0.01141278]
[1766541135154,0.01879977,87624.0,87618.0,0.01141317]
[1766541136776,0.01879977,87624.0,87617.0,0.01141331]
[1766541136984,0.01879977,87624.0,87616.0,0.01141344]
[1766541137358,0.03021216,87624.0,87615.0,0.02285357]
[1766541137557,0.01879977,87624.0,87615.0,0.02285357]
[1766541139161,0.00462535,87624.0,87619.0,0.01141304]
[1766541139350,0.0001,87625.0,87622.0,0.01141265]